bitfinex/quotes_ETHUSD_20260125
["timestamp","ask_amount","ask_price","bid_price","bid_amount"]
[1769356245708,0.96904833,2931.3,2930.3,1.84040963]
[1769356245908,0.96904833,2931.3,2930.4,0.98725839]
[1769356247516,0.001,2931.3,2930.5,0.98725839]
[1769356247816,0.001,2931.1,2930.6,1.17129589]
[1769356250746,0.001,2931.1,2930.7,0.98725839]
[1769356250921,0.001,2931.3,2930.7,0.98725839]
[1769356260467,0.001,2931.3,2930.8,0.002]
[1769356260630,0.001,2931.1,2930.8,0.002]
[1769356262252,0.001,2931.1,2930.8,0.98925839]
[1769356262949,0.001,2931.1,2930.9,0.18422915]
[1769356264151,0.001,2931.1,2930.8,0.002]
[1769356267669,0.001,2931.1,2930.8,0.717]
[1769356273945,0.001,2931.1,2930.5,0.85508073]
[1769356273946,0.97391965,2931.1,2930.5,0.002]
[1769356274843,0.9474031,2930.9,2930.5,0.002]
[1769356276179,0.9474031,2930.9,2930.3,0.002]
[1769356276180,0.9474031,2930.8,2930.3,0.002]
[1769356276380,0.9474031,2930.8,2930.1,0.002]
[1769356282282,0.9474031,2930.5,2930.1,0.002]
[1769356284190,0.9474031,2930.5,2930.0,0.002]
[1769356284489,0.45081259,2930.4,2930.0,0.002]
[1769356286087,0.9474031,2930.5,2930.2,0.002]
[1769356286289,0.9474031,2930.5,2930.0,0.002]
[1769356289994,0.9474031,2930.5,2929.9,0.002]
[1769356292516,3.56072276,2930.3,2929.9,0.002]
[1769356293810,3.56072276,2930.3,2929.7,0.002]
[1769356296005,4.49934565,2930.3,2929.7,0.002]
[1769356298410,4.49934565,2930.3,2929.9,0.002]
[1769356299809,4.49934565,2930.3,2929.7,0.002]
[1769356300112,4.49934565,2930.0,2929.3,0.002]
[1769356300314,0.93862289,2929.9,2929.3,0.002]
[1769356300610,3.56072276,2929.7,2929.1,0.002]
[1769356302206,3.56072276,2930.0,2929.1,0.002]
[1769356302406,0.93862289,2929.9,2929.1,0.18218271]
[1769356303142,0.93862289,2929.9,2929.1,0.002]
[1769356304249,0.35607228,2930.0,2929.1,0.94826697]
[1769356304461,3.56072276,2930.0,2929.1,0.94826697]
[1769356304603,4.49934565,2930.0,2929.1,0.94826697]
[1769356305943,0.93862289,2929.9,2929.1,0.002]
[1769356306321,0.001,2930.6,2929.1,0.002]
[1769356306322,0.93862289,2929.6,2929.1,0.002]
[1769356306520,1.38855746,2929.6,2929.1,0.002]
[1769356306712,0.93862289,2929.6,2929.1,0.002]
[1769356309930,0.93862289,2929.6,2929.3,0.002]
[1769356310132,0.93862289,2929.6,2929.1,0.002]
[1769356313738,0.93862289,2929.6,2929.0,0.002]
[1769356315883,0.85324642,2930.0,2928.5,0.002]
[1769356315884,4.49934565,2929.4,2928.5,0.002]
[1769356316080,3.56072276,2929.4,2928.5,0.94826697]
[1769356316284,3.56072276,2929.4,2928.6,1.12646399]
[1769356320445,4.49934565,2930.0,2928.7,0.98041181]
[1769356320694,3.56072276,2930.0,2928.7,0.94626697]
[1769356320847,3.56072276,2930.0,2928.9,0.94626697]
[1769356321879,3.56072276,2930.0,2929.2,0.94626697]
[1769356322111,0.001,2930.1,2929.3,0.98040481]
[1769356322470,0.93962289,2930.1,2929.3,0.03413784]
[1769356322683,3.56072276,2930.0,2929.1,0.85350069]
[1769356322907,3.56072276,2930.0,2929.2,0.17997677]
[1769356323200,3.56072276,2930.0,2929.2,1.11094645]
[1769356323399,3.56072276,2929.7,2929.2,0.17997677]
[1769356323602,3.56072276,2929.7,2929.3,0.002]
[1769356324026,4.53162053,2929.7,2929.0,0.002]
[1769356326791,3.56072276,2929.4,2929.0,0.002]
[1769356328120,0.97089777,2929.3,2928.5,0.85567757]
[1769356328431,0.97089777,2929.3,2928.6,0.17866473]
[1769356328931,3.56072276,2929.4,2928.6,0.17866473]
[1769356329797,4.53162053,2929.4,2928.6,0.17866473]
[1769356331699,3.56692925,2929.3,2928.6,0.17866473]
[1769356333835,3.56692925,2929.3,2928.6,1.10963441]
[1769356335626,0.001,2929.8,2928.6,1.10963441]
[1769356335627,3.56692925,2929.6,2928.8,0.91596745]
[1769356335825,0.001,2929.8,2929.0,0.91396745]
[1769356336135,0.001,2930.1,2929.2,0.91396745]
[1769356336332,0.001,2930.1,2928.9,0.06479555]
[1769356336333,0.001,2930.1,2929.4,0.91396745]
[1769356337904,0.001,2930.1,2929.4,1.76738311]
[1769356338122,0.001,2930.1,2929.5,0.24823831]
[1769356338326,0.001,2930.1,2929.5,1.16220576]
[1769356340441,0.001,2930.1,2929.5,0.24823831]
[1769356343323,3.56692925,2929.9,2929.1,0.715]
[1769356344656,0.90459841,2929.8,2929.0,0.85351613]
[1769356345021,3.56692925,2929.6,2928.9,0.91396745]
[1769356345221,3.56692925,2929.6,2928.8,0.85557637]
[1769356345222,3.56692925,2929.6,2928.8,0.85559061]
[1769356345643,0.90459841,2929.5,2928.8,0.002]
[1769356345860,0.90459841,2929.5,2928.9,0.17671357]
[1769356347133,3.56692925,2929.6,2928.9,0.17671357]
[1769356347947,3.56692925,2929.6,2929.2,0.002]
[1769356350556,4.47152766,2929.6,2929.2,0.002]
[1769356351456,4.47152766,2929.6,2929.0,0.002]
[1769356353845,0.001,2929.9,2929.0,0.99719758]
[1769356355379,0.001,2929.9,2929.1,0.85350448]
[1769356355584,0.001,2929.9,2929.2,1.18026779]
[1769356358489,0.001,2929.9,2929.2,2.03374026]
[1769356358860,0.001,2929.9,2929.3,0.99519758]
[1769356359968,0.001,2929.7,2929.5,0.99519758]
[1769356361445,0.001,2929.7,2929.3,1.84862365]
[1769356361673,0.001,2929.7,2929.4,0.20336939]
[1769356366972,0.001,2929.7,2929.5,0.715]
[1769356374110,0.98041348,2929.5,2928.9,0.85354587]
[1769356374342,0.98041348,2929.5,2929.0,0.717]
[1769356378701,0.98141348,2929.7,2929.0,0.717]
[1769356378901,0.001,2929.7,2929.0,2.56573013]
[1769356379103,0.001,2929.7,2929.2,0.99519758]
[1769356379417,3.56692925,2929.3,2929.0,0.002]
[1769356379577,0.98041348,2929.5,2928.9,0.715]
[1769356379781,0.98041348,2929.5,2928.8,0.002]
[1769356380019,0.98041348,2929.5,2928.8,0.717]
[1769356380230,0.98041348,2929.4,2928.8,0.717]
[1769356383184,0.98041348,2929.4,2929.0,0.002]
[1769356394402,0.45583427,2929.5,2929.0,0.002]
[1769356394403,0.001,2929.5,2929.0,1.02312672]
[1769356394906,0.001,2929.5,2929.0,0.98898538]
[1769356396037,0.001,2929.2,2929.0,0.98898538]
[1769356398945,0.001,2929.2,2928.8,0.002]
[1769356399243,0.95856512,2929.2,2928.8,0.002]
[1769356403435,0.001,2929.2,2928.8,0.002]
[1769356408051,0.001,2929.2,2929.0,0.002]
[1769356408624,0.001,2929.5,2929.0,0.002]
[1769356408852,0.001,2929.5,2929.0,0.03614134]
[1769356409056,0.001,2929.5,2929.0,0.002]
[1769356411773,0.001,2929.5,2929.0,0.18720824]
[1769356415158,0.92658914,2929.4,2929.0,0.002]
[1769356418863,0.92658914,2929.4,2928.8,0.002]
[1769356418864,0.92658914,2929.3,2928.8,0.002]
[1769356420030,0.92658914,2929.3,2929.2,0.002]
[1769356420230,0.92658914,2929.3,2928.8,0.002]
[1769356420431,0.001,2929.2,2928.8,0.002]
[1769356420635,0.001,2929.2,2926.7,1.73245642]
[1769356420636,0.92658914,2929.0,2928.2,0.715]
[1769356421456,0.92658914,2929.0,2928.0,0.98276238]
[1769356421658,0.92658914,2929.0,2928.1,0.715]
[1769356421952,0.92658914,2929.0,2928.2,0.715]
[1769356423361,0.92658914,2929.0,2928.0,0.98276238]
[1769356423586,4.49299855,2928.8,2928.0,0.98276238]
[1769356423861,0.92658914,2928.7,2928.1,0.715]
[1769356424267,0.92658914,2928.7,2927.9,0.002]
[1769356424433,0.92658914,2928.7,2927.9,0.717]
[1769356426159,0.92658914,2928.7,2927.9,0.002]
[1769356426467,0.92658914,2928.7,2928.0,0.2844523]
[1769356427845,0.92658914,2928.7,2927.9,0.002]
[1769356428872,0.44939986,2929.0,2927.9,0.002]
[1769356428873,0.92658914,2928.4,2927.9,0.002]
[1769356432342,0.92658914,2928.4,2928.1,0.002]
[1769356433262,0.85448925,2929.2,2928.1,0.98476238]
[1769356433263,0.92658914,2929.0,2928.1,0.98476238]
[1769356433465,0.92658914,2929.0,2928.2,1.01691305]
[1769356433775,0.92658914,2929.0,2928.2,0.98276238]
[1769356434143,0.92658914,2929.0,2928.1,0.002]
[1769356434775,0.92658914,2929.0,2928.1,0.98476238]
[1769356436872,0.92658914,2929.0,2928.1,1.83855732]
[1769356437073,0.92658914,2929.0,2928.2,0.18385573]
[1769356437375,0.92758914,2929.2,2928.2,1.16661811]
[1769356442882,0.92758914,2929.2,2928.2,0.18385573]
[1769356444180,0.001,2929.0,2928.2,0.18385573]
[1769356444389,1.00085945,2929.0,2928.2,0.18385573]
[1769356450291,4.56626886,2928.7,2928.1,0.002]
[1769356450492,0.99985945,2928.3,2927.8,1.14476061]
[1769356450980,4.56626886,2928.1,2927.6,0.002]
[1769356451161,0.99985945,2928.0,2927.6,0.002]
[1769356452211,0.99985945,2928.3,2927.6,0.002]
[1769356455294,0.98743602,2928.1,2927.6,0.002]
[1769356455873,0.98743602,2928.1,2927.8,0.002]
[1769356457182,0.98743602,2928.1,2927.6,0.002]
[1769356460701,0.98743602,2927.8,2926.9,0.85414344]
[1769356461001,1.44307569,2927.8,2926.8,0.98863168]
[1769356461202,1.44307569,2927.8,2926.8,1.84280408]
[1769356461203,0.98743602,2927.8,2926.8,1.84280408]
[1769356462605,0.98743602,2927.8,2926.8,0.98863168]
[1769356464105,4.55639668,2927.6,2926.7,0.002]
[1769356464725,0.98743602,2927.5,2926.7,0.002]
[1769356465787,3.56896066,2928.0,2926.7,0.99063168]
[1769356465788,0.98743602,2927.9,2926.7,0.99063168]
[1769356466112,0.98743602,2927.8,2926.8,1.02279868]
[1769356467304,0.98743602,2927.8,2926.8,0.88833639]
[1769356467609,0.98743602,2927.8,2926.9,0.98863168]
[1769356469005,0.98743602,2927.8,2926.9,0.99063168]
[1769356469410,0.001,2927.6,2926.9,1.84477442]
[1769356469610,0.001,2927.6,2926.9,0.002]
[1769356469611,0.98743602,2927.5,2926.9,0.002]
[1769356473004,0.98468939,2927.2,2926.6,0.002]
[1769356474680,3.56896066,2926.7,2925.9,0.8544284]
[1769356474886,4.55365005,2926.4,2925.2,0.91443871]
[1769356475118,0.98468939,2926.3,2925.5,0.85653459]
[1769356475318,0.98468939,2926.3,2925.5,0.002]
[1769356475697,0.98468939,2926.3,2925.6,0.1771005]
[1769356476311,4.55365005,2926.1,2925.5,0.002]
[1769356478013,4.55365005,2925.7,2925.0,0.0016]
[1769356478323,0.98468939,2925.7,2925.0,0.0016]
[1769356478499,0.98468939,2925.9,2925.0,1.77072651]
[1769356478701,0.98468939,2925.9,2925.1,0.17707265]
[1769356480286,0.98468939,2925.9,2925.0,0.0016]
[1769356480287,0.98468939,2925.6,2925.0,0.0016]
[1769356481331,0.98468939,2925.6,2924.1,3.41982246]
[1769356481332,0.98468939,2925.0,2923.6,0.0203317]
[1769356481513,0.98468939,2925.0,2922.1,3.599]
[1769356481514,3.56896066,2923.7,2922.6,0.91443871]
[1769356481719,3.56896066,2923.5,2922.6,0.91443871]
[1769356482023,3.56896066,2923.2,2922.3,0.91443871]
[1769356482234,0.43846743,2923.6,2922.3,0.91443871]
[1769356482235,0.35689607,2923.1,2922.3,0.91443871]
[1769356482390,3.56896066,2923.2,2922.3,0.91443871]
[1769356482589,3.56896066,2924.1,2922.6,0.06479555]
[1769356482816,3.56896066,2924.1,2922.7,0.91443871]
[1769356483192,3.56896066,2923.8,2922.7,0.91443871]
[1769356483387,3.56896066,2923.8,2922.9,0.91443871]
[1769356483614,0.35689607,2923.7,2922.9,0.91443871]
[1769356483851,0.06479555,2924.7,2922.7,0.91443871]
[1769356483852,0.43846743,2923.9,2922.7,0.91443871]
[1769356484145,0.43846743,2923.9,2922.3,3.42193743]
[1769356484146,0.43846743,2923.7,2922.4,0.91443871]
[1769356484349,0.43846743,2923.7,2922.3,0.85548684]
[1769356484350,0.43846743,2923.7,2922.3,1.76990922]
[1769356484548,0.43846743,2923.7,2921.9,0.91443871]
[1769356484764,0.06479555,2923.4,2921.6,0.91443871]
[1769356485047,0.06479555,2923.4,2921.3,0.716]
[1769356485048,0.42539844,2923.4,2922.2,0.91443871]
[1769356485250,2.421635,2923.8,2922.5,0.91443871]
[1769356485452,2.421635,2923.8,2922.4,0.85544504]
[1769356485749,5.320377,2923.7,2922.5,0.91443871]
[1769356485951,5.80884443,2923.7,2922.5,0.91443871]
[1769356486118,0.48846743,2923.7,2922.2,0.91443871]
[1769356486319,0.48846743,2923.7,2922.4,1.76989597]
[1769356487459,0.48846743,2923.7,2922.4,2.28908018]
[1769356487619,1.570921,2924.3,2922.4,2.28908018]
[1769356487620,0.48846743,2924.3,2922.5,0.91443871]
[1769356487820,4.18918888,2924.8,2922.5,0.91443871]
[1769356488015,1.3007285,2924.9,2922.7,0.91443871]
[1769356488320,0.06479555,2925.0,2922.7,0.91443871]
[1769356488744,0.128,2925.1,2922.7,0.91443871]
[1769356489216,0.48846743,2925.2,2922.7,0.91443871]
[1769356489456,0.48846743,2925.5,2923.2,0.97923426]
[1769356489620,0.48846743,2925.5,2923.4,0.91443871]
[1769356489950,0.06479555,2925.7,2923.6,0.91443871]
[1769356490330,0.55426298,2926.1,2923.8,0.91443871]
[1769356490533,0.128,2926.0,2923.9,0.97923426]
[1769356490723,0.55426298,2926.1,2923.9,0.91443871]
[1769356490918,0.48846743,2926.0,2923.9,0.91443871]
[1769356491627,7.63232743,2925.3,2923.9,0.91443871]
[1769356491827,0.9193646,2925.5,2923.9,0.91443871]
[1769356491828,1.25170017,2925.2,2923.9,0.91443871]
[1769356492129,0.48846743,2925.2,2923.9,1.76945462]
[1769356492354,0.48846743,2925.5,2924.0,0.91443871]
[1769356492563,0.48846743,2925.8,2924.0,0.91443871]
[1769356493464,0.48846743,2925.7,2924.0,0.91443871]
[1769356493756,0.48846743,2925.7,2923.9,0.85500122]
[1769356493757,0.48846743,2925.3,2923.9,0.91443871]
[1769356494270,14.10113,2924.8,2923.2,0.91443871]
[1769356494484,0.48646743,2924.6,2923.2,0.91443871]
[1769356494631,0.48446743,2925.0,2923.6,0.91443871]
[1769356494960,0.48446743,2925.0,2923.7,0.91443871]
[1769356496156,0.06479555,2925.2,2923.8,0.91443871]
[1769356496157,8.050451,2925.1,2923.8,0.91443871]
[1769356497762,0.48446743,2925.3,2923.9,0.91443871]
[1769356498136,5.804511,2925.6,2923.9,0.91443871]
[1769356498337,2.0,2925.4,2923.9,0.91443871]
[1769356498649,2.010068,2925.6,2923.9,0.91443871]
[1769356499167,0.54926298,2925.7,2923.9,0.91443871]
[1769356499364,2.495068,2925.6,2923.9,0.91443871]
[1769356499544,0.48446743,2925.6,2923.9,0.91443871]
[1769356499741,0.48446743,2925.6,2924.0,0.85499316]
[1769356500071,0.48446743,2925.6,2924.1,0.91443871]
[1769356500743,0.48446743,2925.6,2923.3,0.91443871]
[1769356500744,4.67365631,2924.7,2923.3,0.91443871]
[1769356501045,3.86890578,2924.6,2923.3,0.91443871]
[1769356501247,0.48446743,2924.6,2923.0,1.76970544]
[1769356501458,0.06479555,2924.7,2923.0,0.91443871]
[1769356501459,0.54926298,2924.5,2923.0,0.91443871]
[1769356501659,4.12439333,2924.7,2923.2,1.76964518]
[1769356501832,11.307468,2924.7,2923.3,0.91443871]
[1769356502028,0.48446743,2924.4,2922.9,0.91443871]
[1769356502341,3.53291417,2924.3,2922.9,0.91443871]
[1769356502538,4.18918888,2924.4,2923.1,0.91443871]
[1769356502539,4.12439333,2924.4,2923.1,0.91443871]
[1769356502742,4.12439333,2924.4,2922.7,0.002]
[1769356502743,4.17863,2924.5,2923.2,0.91443871]
[1769356502966,2.861973,2924.8,2923.4,0.91034754]
[1769356503166,9.925431,2924.7,2923.4,0.91034754]
[1769356503329,0.48446743,2924.7,2923.4,0.91034754]
[1769356503527,0.48446743,2924.7,2923.2,0.85522014]
[1769356503761,0.48446743,2924.7,2923.3,0.85519706]
[1769356503962,0.48446743,2924.7,2923.3,0.91034754]
[1769356504467,6.144062,2924.8,2923.4,0.94455428]
[1769356504667,6.31447311,2925.0,2923.6,0.91034754]
[1769356504833,0.06479555,2925.1,2923.6,0.91034754]
[1769356505166,4.12097333,2925.3,2923.4,0.91034754]
[1769356505365,7.29695886,2925.8,2923.6,0.91034754]
[1769356505366,3.064491,2925.6,2923.6,0.91034754]
[1769356505531,0.31292866,2925.5,2923.6,0.91034754]
[1769356505736,1.46695328,2925.8,2923.6,0.91034754]
[1769356505737,0.91929506,2925.7,2923.6,0.91034754]
[1769356505950,0.91929506,2925.7,2923.8,0.91034754]
[1769356506243,2.515667,2925.6,2923.8,0.91034754]
[1769356506456,1.40376299,2925.7,2923.8,0.91034754]
[1769356506665,2.492225,2925.6,2923.8,0.91034754]
[1769356506846,0.3895988,2925.5,2924.0,0.91034754]
[1769356507038,2.098843,2925.6,2924.0,0.91034754]
[1769356507240,0.48446743,2925.6,2924.0,0.91034754]
[1769356507970,0.06479555,2925.7,2924.2,0.91034754]
[1769356508146,2.952153,2925.6,2924.2,0.91034754]
[1769356508551,0.001,2925.8,2924.2,0.91034754]
[1769356508756,0.001,2925.8,2924.4,0.91034754]
[1769356508964,0.001,2925.8,2924.6,0.91034754]
[1769356509275,0.001,2926.1,2924.8,0.91034754]
[1769356509436,0.001,2926.1,2925.0,0.91034754]
[1769356509637,0.0008,2927.4,2925.4,0.91034754]
[1769356510142,0.0008,2927.4,2925.6,0.91034754]
[1769356510346,0.0008,2927.4,2925.8,0.91034754]
[1769356510347,0.48726743,2927.4,2925.8,0.91034754]
[1769356510558,4.60586584,2927.0,2925.4,0.91034754]
[1769356511173,4.60586584,2927.0,2925.4,0.85457798]
[1769356511334,0.06479555,2927.2,2925.5,0.91034754]
[1769356511873,0.06559555,2927.4,2925.5,0.91034754]
[1769356512081,0.06559555,2927.4,2924.9,0.06479555]
[1769356512082,0.4184994,2927.3,2925.8,0.91034754]
[1769356512242,0.0008,2927.4,2925.8,0.91034754]
[1769356513373,6.934033,2927.3,2925.8,0.91034754]
[1769356513538,7.42050043,2927.3,2925.8,0.91034754]
[1769356513735,0.0008,2927.4,2925.8,0.91034754]
[1769356513968,7.970958,2927.1,2925.4,0.91034754]
[1769356514174,6.184783,2926.9,2925.4,0.91034754]
[1769356514470,2.892236,2926.9,2925.4,0.91034754]
[1769356514858,2.135178,2926.9,2924.9,0.99599377]
[1769356515039,2.135178,2926.9,2925.8,0.99599377]
[1769356515356,0.30663264,2926.8,2925.8,0.99599377]
[1769356515556,0.06479555,2927.2,2925.8,0.99599377]
[1769356515557,2.015078,2927.0,2925.8,0.99599377]
[1769356515769,4.612078,2927.1,2925.8,0.99599377]
[1769356515938,4.015078,2927.1,2925.8,0.99599377]
[1769356516537,2.85409422,2927.1,2925.8,0.99599377]
[1769356516743,0.48646743,2926.7,2924.9,0.99599377]
[1769356517065,2.188,2926.5,2925.0,0.99599377]
[1769356517379,0.48646743,2926.3,2924.4,0.99599377]
[1769356517545,0.48646743,2926.4,2924.4,0.99599377]
[1769356517872,0.48646743,2926.3,2924.5,0.99599377]
[1769356518078,4.72839319,2926.2,2924.6,0.99599377]
[1769356518248,3.516836,2926.0,2924.6,0.99599377]
[1769356520569,6.443805,2926.0,2924.6,0.99599377]
[1769356520881,6.443805,2926.0,2924.1,0.99599377]
[1769356520882,27.192461,2925.8,2924.1,0.99599377]
[1769356521087,30.48646743,2925.6,2924.1,0.99599377]
[1769356521295,12.620741,2925.4,2924.1,0.99599377]
[1769356521450,3.357395,2925.5,2924.1,1.85095379]
[1769356521959,3.357395,2925.5,2924.2,0.99599377]
[1769356521960,3.089195,2925.5,2924.2,0.99599377]
[1769356522363,3.78321,2925.7,2924.2,0.99599377]
[1769356522684,3.552666,2925.7,2924.2,0.99599377]
[1769356522888,0.44071375,2925.6,2924.3,1.03018998]
[1769356523059,0.48646743,2926.3,2924.3,0.99599377]
[1769356523060,1.34080748,2926.3,2924.3,0.99599377]
[1769356523378,5.534901,2926.3,2924.5,0.99599377]
[1769356525090,0.85432115,2926.3,2924.6,0.99599377]
[1769356525293,4.506042,2926.2,2924.6,0.99599377]
[1769356525449,2.204134,2926.0,2924.6,0.99599377]
[1769356526294,9.893078,2926.3,2924.6,0.99599377]
[1769356526456,7.686655,2926.3,2924.6,0.99599377]
[1769356526657,7.445637,2926.3,2924.6,0.99599377]
[1769356527183,5.345419,2926.2,2924.7,0.99599377]
[1769356527384,2.204134,2926.0,2924.7,0.99599377]
[1769356527562,4.850452,2926.2,2924.7,0.99599377]
[1769356528488,2.317034,2926.1,2924.7,0.99599377]
[1769356530864,6.31447311,2926.5,2924.8,1.03018414]
[1769356531064,0.48646743,2926.9,2925.2,0.99599377]
[1769356531065,0.63144731,2926.4,2925.2,0.99599377]
[1769356531263,0.85419975,2926.8,2925.2,0.99599377]
[1769356531469,0.716,2926.7,2925.2,0.99599377]
[1769356531669,0.716,2926.7,2925.0,0.85468372]
[1769356531670,0.001,2927.1,2925.6,0.99599377]
[1769356533090,0.001,2927.1,2925.9,0.97961424]
[1769356533760,5.045323,2927.0,2925.9,0.97961424]
[1769356533974,0.5046323,2926.9,2925.9,0.97961424]
[1769356534190,4.045323,2927.0,2925.9,0.97961424]
[1769356534501,0.001,2927.1,2925.9,0.97961424]
[1769356534794,8.030454,2927.0,2925.1,0.85465638]
[1769356534960,8.030454,2927.0,2925.3,0.97961424]
[1769356534961,0.48646743,2927.0,2925.3,0.97961424]
[1769356535158,1.34060074,2927.0,2925.3,0.97961424]
[1769356535967,11.802461,2926.7,2925.3,0.97961424]
[1769356536180,0.48646743,2926.8,2925.3,0.97961424]
[1769356536781,0.85510856,2927.1,2925.4,0.97961424]
[1769356537109,3.398136,2927.0,2925.5,0.97961424]
[1769356537324,0.001,2927.1,2925.5,0.97961424]
[1769356537325,0.3399136,2926.9,2925.5,0.97961424]
[1769356537480,0.001,2927.1,2925.5,0.97961424]
[1769356538075,0.001,2927.1,2925.7,0.97961424]
[1769356539402,0.001,2927.1,2925.8,0.97961424]
[1769356541113,0.001,2927.1,2926.0,0.97961424]
[1769356542504,0.001,2927.1,2926.1,0.97961424]
[1769356543785,0.001,2927.1,2926.2,0.97961424]
[1769356544080,0.001,2926.9,2926.2,0.97961424]
[1769356546516,0.001,2926.9,2925.8,0.97961424]
[1769356549212,19.43791343,2926.8,2925.5,0.98161424]
[1769356549383,0.48646743,2926.8,2925.5,0.98161424]
[1769356549894,2.541825,2926.7,2925.5,0.98161424]
[1769356550094,0.30282924,2926.6,2925.5,0.98161424]
[1769356550306,0.48646743,2926.8,2925.5,0.98161424]
[1769356551019,2.592199,2926.7,2925.5,0.98161424]
[1769356551216,0.48646743,2926.8,2925.5,0.98161424]
[1769356551519,0.85516443,2926.9,2925.5,0.98161424]
[1769356552218,6.31447311,2926.8,2925.5,0.98161424]
[1769356552514,0.71696375,2926.7,2925.5,0.98161424]
[1769356554192,0.001,2926.9,2926.1,0.97961424]
[1769356554387,0.001,2927.1,2926.2,0.97961424]
[1769356557815,0.001,2926.9,2926.2,0.97961424]
[1769356559219,0.001,2926.9,2926.3,0.97961424]
[1769356559422,0.001,2926.9,2926.5,0.97961424]
[1769356562118,0.001,2926.9,2926.4,0.18339549]
[1769356562341,0.001,2926.9,2925.7,0.002]
[1769356562342,0.001,2926.9,2925.8,0.97961424]
[1769356562810,0.001,2926.9,2925.9,0.97961424]
[1769356563836,0.48846743,2926.9,2925.7,0.002]
[1769356566036,0.48846743,2926.9,2925.7,1.00008869]
[1769356566341,0.001,2926.9,2925.7,1.18575274]
[1769356566639,0.001,2926.9,2925.9,0.99808869]
[1769356569717,0.001,2926.9,2925.9,0.002]
[1769356570119,0.001,2926.9,2925.9,1.00008869]
[1769356574035,0.48846743,2926.9,2925.9,1.00008869]
[1769356576133,0.48746743,2926.7,2925.7,0.002]
[1769356579387,0.001,2926.9,2925.7,0.92632357]
[1769356579685,0.85514907,2926.9,2925.7,0.92632357]
[1769356579970,0.85514639,2926.9,2925.7,0.92632357]
[1769356580253,0.001,2926.9,2925.7,0.92632357]
[1769356582461,0.4617588,2926.9,2925.7,0.92632357]
[1769356582962,0.4617588,2926.9,2925.9,0.92632357]
[1769356583647,0.001,2926.9,2925.9,0.92632357]
[1769356585058,1.34262332,2926.9,2925.7,0.92632357]
[1769356585265,0.48846743,2926.9,2925.7,0.92632357]
[1769356585759,0.001,2926.9,2925.7,0.92632357]
[1769356586861,0.85514852,2926.9,2925.7,0.92632357]
[1769356587468,0.001,2926.9,2925.7,0.92632357]
[1769356588038,0.001,2926.9,2925.7,1.10481115]
[1769356593148,0.48846743,2926.9,2925.7,0.92632357]
[1769356593849,14.014004,2926.8,2925.7,0.92632357]
[1769356594169,0.48746743,2926.7,2925.7,0.92632357]
[1769356594772,0.48746743,2926.7,2925.9,0.002]
[1769356594938,0.48846743,2926.7,2925.7,0.92632357]
[1769356597771,0.001,2926.7,2925.7,0.92632357]
[1769356599676,0.48746743,2926.6,2925.5,0.002]
[1769356599891,0.48746743,2926.6,2925.3,0.002]
[1769356599892,0.48746743,2926.4,2925.3,0.002]
[1769356600869,0.48746743,2926.4,2925.3,0.95842841]
[1769356601742,0.4606588,2926.5,2925.3,0.95842841]
[1769356601939,5.69932,2926.4,2925.3,0.95842841]
[1769356602147,0.001,2926.7,2925.5,0.95642841]
[1769356602442,0.001,2926.7,2925.7,0.95642841]
[1769356602670,0.001,2926.9,2925.8,0.95642841]
[1769356602869,0.001,2926.9,2926.0,0.95642841]
[1769356603762,0.001,2926.9,2925.9,0.18109178]
[1769356604149,0.001,2926.9,2926.0,0.95642841]
[1769356606182,0.001,2926.9,2926.1,0.95642841]
[1769356606349,0.001,2927.1,2926.2,0.95642841]
[1769356606765,0.001,2927.1,2926.3,0.95642841]
[1769356607060,0.001,2927.1,2926.5,0.95642841]
[1769356607406,0.0008,2927.4,2926.5,0.95642841]
[1769356608854,0.0008,2927.4,2926.7,0.95642841]
[1769356609172,0.001,2927.6,2926.7,0.95642841]
[1769356609573,1.15596621,2927.7,2926.5,0.85424206]
[1769356609574,1.15596621,2927.7,2926.6,0.95642841]
[1769356609773,1.15596621,2927.7,2926.8,0.95642841]
[1769356616457,1.15596621,2927.7,2926.8,1.81060342]
[1769356616657,1.15596621,2927.7,2926.9,0.95642841]
[1769356617955,1.15596621,2927.7,2927.0,0.95642841]
[1769356618361,1.15596621,2927.7,2927.0,0.95842841]
[1769356618969,2.09642366,2927.7,2927.0,0.002]
[1769356619159,0.20964237,2927.6,2927.0,0.002]
[1769356619358,1.15009982,2927.6,2926.8,0.002]
[1769356619572,0.94045745,2927.5,2926.8,0.002]
[1769356621172,0.94045745,2927.2,2925.9,0.002]
[1769356621376,0.94045745,2927.0,2925.9,0.002]
[1769356622084,0.94045745,2926.8,2925.9,0.002]
[1769356622292,0.94045745,2926.4,2925.6,0.002]
[1769356623372,7.23664456,2926.8,2925.6,0.002]
[1769356623581,1.71716802,2926.7,2925.6,0.002]
[1769356623895,0.99350356,2926.7,2925.6,0.002]
[1769356624267,0.99350356,2926.6,2925.6,0.002]
[1769356624462,0.99350356,2926.3,2925.6,0.002]
[1769356625768,6.03058103,2926.9,2925.6,0.002]
[1769356625967,2.375643,2926.7,2925.6,0.002]
[1769356626466,3.36914656,2926.7,2925.6,0.002]
[1769356626663,0.99350356,2926.7,2925.6,0.002]
[1769356627978,0.99350356,2926.7,2925.3,0.002]
[1769356627979,0.99350356,2926.2,2925.3,0.002]
[1769356628178,1.30752386,2926.1,2925.3,0.002]
[1769356628387,0.99350356,2926.0,2925.3,0.002]
[1769356629290,0.99350356,2926.4,2925.3,0.002]
[1769356630470,0.06579555,2926.5,2925.3,0.96658078]
[1769356630671,0.001,2926.5,2925.3,0.96658078]
[1769356630872,0.001,2926.5,2925.5,0.96458078]
[1769356631094,0.001,2926.5,2925.7,0.96458078]
[1769356631669,0.001,2926.5,2925.9,0.96458078]
[1769356632111,2.21426532,2927.7,2926.1,0.96458078]
[1769356632315,0.22142653,2927.6,2926.2,1.14647973]
[1769356632805,1.21493009,2927.6,2926.2,1.14647973]
[1769356632995,0.22142653,2927.6,2926.2,1.14647973]
[1769356634195,0.22142653,2927.6,2926.4,0.96458078]
[1769356634994,0.98012853,2927.4,2926.2,0.18189895]
[1769356635186,5.965927,2927.3,2926.1,0.9996939]
[1769356635394,2.596759,2927.3,2926.1,1.85405761]
[1769356635592,0.98012853,2927.4,2926.2,0.8543402]
[1769356635826,0.98012853,2927.4,2926.2,1.8540341]